bitfinex/quotes_ETHUSD_20260313
["timestamp","ask_amount","ask_price","bid_price","bid_amount"]
[1773363507900,3.02848054,2114.6,2114.4,0.03729474]
[1773363508104,1.8888781,2114.6,2114.3,0.001]
[1773363508322,6.05696108,2115.0,2114.3,0.002]
[1773363508323,4.91735864,2115.0,2114.3,0.002]
[1773363508599,1.18197721,2115.1,2114.4,0.001]
[1773363508807,1.18197721,2115.1,2114.4,1.90833181]
[1773363510041,1.18197721,2115.1,2114.5,0.03729297]
[1773363511038,1.18197721,2115.1,2114.6,0.001]
[1773363512115,1.18380958,2115.5,2114.6,1.90833181]
[1773363512339,1.18379119,2115.5,2114.8,1.90733181]
[1773363512549,1.18379119,2115.5,2114.9,1.94461772]
[1773363512848,0.002,2115.5,2115.0,1.18203309]
[1773363513015,0.002,2115.5,2115.0,3.0903649]
[1773363513211,0.002,2115.5,2115.1,1.90733181]
[1773363514242,0.002,2115.7,2115.3,1.90733181]
[1773363514841,0.002,2115.7,2115.3,4.45615592]
[1773363516641,0.002,2115.7,2115.4,0.001]
[1773363516945,0.002,2115.7,2115.3,4.45615592]
[1773363517336,0.002,2115.7,2115.4,0.001]
[1773363518232,0.002,2115.7,2115.3,4.45615592]
[1773363518435,0.002,2115.7,2115.4,1.90733181]
[1773363518817,0.002,2115.9,2115.6,1.90733181]
[1773363519250,0.002,2116.0,2115.6,1.90733181]
[1773363519444,0.002,2116.2,2115.6,1.90733181]
[1773363520135,0.002,2116.2,2115.5,1.18175372]
[1773363521045,0.002,2115.7,2115.4,1.18176714]
[1773363521249,0.01567636,2116.1,2115.4,3.08909895]
[1773363521750,0.002,2116.0,2115.4,3.08909895]
[1773363521926,0.002,2116.0,2115.5,1.368]
[1773363522721,0.002,2116.0,2115.5,3.27533181]
[1773363523028,1.8888781,2117.2,2115.9,4.72589792]
[1773363523232,1.92585561,2117.0,2116.0,1.368]
[1773363523428,3.04044234,2117.1,2116.0,1.368]
[1773363523429,1.92585561,2116.8,2116.0,1.368]
[1773363523640,0.01567636,2116.7,2116.0,1.368]
[1773363523854,1.94153197,2116.7,2115.8,1.368]
[1773363524162,1.92585561,2116.7,2115.6,1.18169751]
[1773363524336,1.92585561,2116.7,2115.6,2.54969751]
[1773363524661,1.92585561,2116.7,2115.6,2.59696542]
[1773363525074,1.92585561,2116.5,2115.6,2.59696542]
[1773363525257,1.18113956,2116.6,2115.7,1.91370463]
[1773363525465,3.10699517,2116.6,2115.7,1.91370463]
[1773363525643,1.94153197,2116.5,2115.6,2.59696542]
[1773363525845,1.94153197,2116.5,2115.6,2.54969751]
[1773363526365,1.94153197,2116.5,2115.4,1.91370463]
[1773363526663,1.94153197,2116.5,2115.4,2.55079069]
[1773363527070,1.92585561,2116.3,2115.5,1.22897307]
[1773363527240,1.18125118,2116.4,2115.5,0.04727014]
[1773363527241,1.94153197,2116.2,2115.5,0.04727014]
[1773363527767,1.92585561,2116.2,2115.5,1.22902312]
[1773363527951,1.92585561,2116.2,2115.5,0.04727014]
[1773363528148,1.92585561,2116.2,2115.5,1.22901992]
[1773363529265,1.18136947,2116.2,2115.5,3.14272455]
[1773363529451,1.92585561,2116.5,2115.5,3.14272455]
[1773363529655,0.01567636,2116.4,2115.6,1.91370463]
[1773363529962,0.01567636,2116.4,2115.7,0.04726568]
[1773363531165,3.40716215,2116.4,2115.8,1.18158616]
[1773363531361,2.21023034,2116.3,2115.4,1.18177422]
[1773363531556,2.2259067,2116.2,2115.3,3.20857303]
[1773363532171,2.2259067,2116.2,2115.3,4.57757303]
[1773363532343,2.2259067,2116.2,2115.3,1.1818266]
[1773363532546,2.2259067,2116.2,2115.3,2.5508266]
[1773363533375,1.18141864,2116.1,2115.3,2.5508266]
[1773363533560,0.01567636,2116.0,2115.3,2.5508266]
[1773363533869,0.01567636,2116.0,2115.5,0.001]
[1773363534845,2.21223034,2116.1,2115.5,0.001]
[1773363535259,0.002,2116.1,2115.5,2.07501657]
[1773363535456,1.1991118,2116.1,2115.5,3.25672436]
[1773363536986,0.01767636,2116.1,2115.5,3.25672436]
[1773363537472,0.002,2116.1,2115.5,3.25672436]
[1773363537777,0.01767636,2116.1,2115.5,3.25672436]
[1773363537979,0.002,2116.1,2115.5,3.25672436]
[1773363539798,0.002,2116.1,2115.6,2.02674643]
[1773363540003,0.002,2116.1,2115.7,0.04726568]
[1773363540620,0.002,2116.1,2115.6,2.02674643]
[1773363540976,0.002,2116.1,2115.7,0.04726568]
[1773363542278,0.002,2116.1,2115.7,1.1816418]
[1773363544607,0.002,2116.1,2115.8,0.04726344]
[1773363544812,0.002,2116.1,2115.7,1.1816418]
[1773363544980,0.002,2116.1,2115.8,0.04726344]
[1773363545383,0.002,2116.1,2115.7,3.20838823]
[1773363545996,0.002,2116.1,2115.7,4.58138823]
[1773363546322,0.002,2116.1,2115.8,0.04726344]
[1773363546723,0.002,2116.3,2115.9,3.20827674]
[1773363547431,2.02429842,2116.7,2116.0,2.02674643]
[1773363547602,4.78833271,2117.4,2116.2,2.02674643]
[1773363547603,2.21023034,2117.3,2116.2,2.02674643]
[1773363547803,2.21023034,2117.2,2116.3,1.374]
[1773363548126,2.21023034,2117.2,2116.4,2.02674643]
[1773363548708,1.18086061,2117.1,2116.5,1.18119536]
[1773363549022,2.21023034,2117.2,2116.5,1.18119536]
[1773363549399,1.18077395,2117.3,2116.6,2.02674643]
[1773363549630,2.21023034,2117.4,2116.6,2.02674643]
[1773363550613,1.18068245,2117.5,2116.2,1.375]
[1773363550614,2.21023034,2117.2,2116.2,1.375]
[1773363550810,2.21023034,2117.0,2116.2,2.5563231]
[1773363551207,2.21023034,2117.0,2116.2,2.55636013]
[1773363551396,2.21023034,2117.0,2116.0,6.75246853]
[1773363551397,2.21023034,2117.0,2115.8,4.72623145]
[1773363551602,2.21023034,2116.7,2115.9,0.04726121]
[1773363551829,2.21023034,2116.6,2115.8,0.04726344]
[1773363552127,2.21023034,2116.4,2115.7,1.18262285]
[1773363552327,2.21023034,2116.4,2115.8,0.04726344]
[1773363553114,3.3913141,2116.7,2115.9,1.18153031]
[1773363553870,1.18108376,2116.7,2115.9,1.18153031]
[1773363554032,2.21023034,2116.6,2115.9,1.18153031]
[1773363554237,2.21023034,2116.6,2115.8,1.22883748]
[1773363554566,1.18108376,2116.7,2115.9,2.02674643]
[1773363554742,1.18108376,2116.7,2116.0,2.0740054]
[1773363554936,1.1810577,2116.8,2116.0,2.0740054]
[1773363555137,1.1810577,2116.8,2116.1,3.20816507]
[1773363555371,1.1810577,2116.8,2116.2,0.04725451]
[1773363555559,1.1810577,2116.8,2116.1,3.20816507]
[1773363555762,1.18089892,2117.1,2116.2,2.07400094]
[1773363556264,3.39107177,2117.2,2116.2,2.07400094]
[1773363556430,1.18084143,2117.2,2116.2,2.07400094]
[1773363556635,1.18084143,2117.2,2116.4,2.02674643]
[1773363557260,2.21023034,2117.3,2116.5,1.18119536]
[1773363557768,2.21023034,2117.3,2116.5,3.20794179]
[1773363557942,0.23482737,2117.3,2116.6,2.02674643]
[1773363558273,2.21023034,2117.4,2116.5,1.18119536]
[1773363558475,2.21023034,2117.3,2116.4,1.18122354]
[1773363559251,1.18080483,2117.2,2116.4,1.18122354]
[1773363559454,3.39100488,2117.3,2116.4,3.20796997]
[1773363559671,3.39100488,2117.3,2116.5,2.02674643]
[1773363559873,1.18061653,2117.6,2116.7,5.05151241]
[1773363560180,3.39084687,2117.6,2116.7,2.02674643]
[1773363560946,1.18061653,2117.6,2116.7,2.02674643]
[1773363561591,1.41848014,2117.6,2116.8,3.39763959]
[1773363561789,4.72227128,2117.7,2116.8,3.39763959]
[1773363561790,3.37075722,2117.7,2116.8,3.39763959]
[1773363561955,0.002,2117.1,2116.8,3.39763959]
[1773363562162,3.37075722,2117.7,2116.8,3.39763959]
[1773363562163,1.73597871,2117.8,2116.9,2.21661163]
[1773363562363,2.19019096,2118.5,2116.9,2.21661163]
[1773363562700,2.19019096,2118.5,2116.8,4.20579394]
[1773363562701,0.002,2117.3,2117.2,2.21661163]
[1773363562897,2.19019096,2118.1,2117.2,3.59461163]
[1773363563061,0.002,2117.6,2117.3,2.21661163]
[1773363563255,2.19019096,2118.4,2117.5,2.21661163]
[1773363563702,3.37033707,2118.4,2117.6,1.18058179]
[1773363563996,2.19019096,2118.8,2117.8,5.24137761]
[1773363564206,3.37013859,2118.8,2117.9,2.21661163]
[1773363564501,3.37010569,2118.8,2117.9,3.59461163]
[1773363564790,1.17991473,2118.8,2118.1,2.21661163]
[1773363564994,4.71932435,2119.0,2118.1,2.21661163]
[1773363564995,1.17985747,2118.9,2118.1,2.21661163]
[1773363565154,2.51682601,2119.1,2118.2,3.02476598]
[1773363565155,0.32663505,2119.1,2118.2,3.02476598]
[1773363565360,0.32663505,2119.1,2118.3,2.21661163]
[1773363565555,3.36985925,2119.3,2118.4,1.18013595]
[1773363565859,2.19019096,2119.2,2118.3,4.77476308]
[1773363566062,1.17960262,2119.4,2118.4,2.21661163]
[1773363566256,1.17960262,2119.4,2118.6,2.21661163]
[1773363566762,2.19019096,2119.3,2118.4,1.378]
[1773363567487,2.19019096,2119.3,2118.3,3.39676308]
[1773363567903,3.36988133,2119.3,2118.3,1.18015145]
[1773363568190,3.36988133,2119.3,2118.4,2.21661163]
[1773363568388,3.36988133,2119.3,2118.5,2.21661163]
[1773363568389,1.17969037,2119.3,2118.5,2.21661163]
[1773363568966,1.17969037,2119.3,2118.3,2.55815145]
[1773363568967,3.36988133,2119.3,2118.3,2.55815145]
[1773363569174,3.36983139,2119.3,2118.3,7.79952906]
[1773363569375,10.36462549,2120.0,2118.3,7.79952906]
[1773363569376,6.9058451,2120.6,2119.3,2.21661163]
[1773363569589,6.9058451,2120.6,2118.7,2.21661163]
[1773363569590,2.19019096,2120.1,2118.7,2.21661163]
[1773363569798,2.19019096,2120.1,2118.8,1.378]
[1773363569964,2.19019096,2119.9,2118.8,2.55789662]
[1773363570481,2.19019096,2119.9,2118.9,2.21661163]
[1773363570672,1.17924528,2120.0,2119.1,3.02476598]
[1773363571488,2.19019096,2119.9,2118.8,2.55689662]
[1773363571666,2.19019096,2119.9,2118.9,3.02476598]
[1773363571869,1.17935654,2119.8,2119.0,1.17980179]
[1773363572070,3.3695475,2119.8,2118.9,2.55683403]
[1773363572613,3.3695475,2119.8,2118.8,2.21661163]
[1773363572760,2.19019096,2119.7,2118.5,9.14940949]
[1773363572964,2.19019096,2119.7,2118.5,12.17417547]
[1773363573164,2.19019096,2119.7,2118.7,5.24137761]
[1773363573364,1.17935654,2119.8,2118.9,3.02476598]
[1773363573565,1.17935654,2119.8,2118.9,5.24137761]
[1773363573992,1.17946782,2119.6,2118.7,1.17996884]
[1773363574166,2.19019096,2119.5,2118.7,1.17996884]
[1773363574567,1.17946782,2119.6,2118.7,1.17996884]
[1773363574894,1.17946782,2119.6,2118.7,6.42134645]
[1773363575280,2.19019096,2119.5,2118.7,1.17996884]
[1773363576097,1.17957912,2119.4,2118.7,1.17996884]
[1773363576505,1.17957912,2119.4,2118.8,0.04719652]
[1773363577401,6.90763101,2119.8,2118.8,0.04719652]
[1773363577603,0.002,2119.2,2118.8,2.26380815]
[1773363577797,1.17941218,2119.7,2118.8,2.26380815]
[1773363578182,0.002,2119.4,2118.9,1.17985747]
[1773363578381,3.60716042,2119.8,2119.0,0.04719207]
[1773363578584,0.002,2119.7,2119.0,0.04719207]
[1773363579681,0.002,2119.7,2118.9,1.17985747]
[1773363579880,0.002,2119.7,2119.0,2.21661163]
[1773363580207,0.002,2119.7,2119.1,1.17974611]
[1773363580610,3.36957964,2119.8,2119.1,1.17974611]
[1773363580798,2.19019096,2119.7,2119.1,1.17974611]
[1773363581105,1.17938868,2119.8,2119.2,0.04718761]
[1773363581509,1.17938868,2119.8,2118.6,6.61937761]
[1773363581510,2.19019096,2119.7,2118.6,6.61937761]
[1773363581708,2.19019096,2119.7,2118.7,0.04719875]
[1773363582009,2.19019096,2119.7,2118.6,4.7745895]
[1773363582211,2.19019096,2119.7,2118.7,0.04719875]
[1773363582508,2.19019096,2119.5,2118.7,0.04719875]
[1773363583193,2.19019096,2119.5,2118.6,2.55797787]
[1773363583389,2.19019096,2119.5,2118.7,2.3972258]
[1773363583590,2.19019096,2119.5,2118.7,2.44442455]
[1773363583941,2.19019096,2119.5,2118.6,1.17997787]
[1773363584230,2.19019096,2119.5,2118.7,0.04719875]
[1773363584432,2.40856145,2119.3,2118.7,0.04719875]
[1773363584612,2.40856145,2119.3,2118.5,7.96934151]
[1773363584939,4.19572527,2119.4,2118.5,6.95590158]
[1773363584940,2.40856145,2118.8,2118.5,6.95590158]
[1773363585140,2.40856145,2118.8,2118.0,1.1803541]
[1773363585433,2.40856145,2118.8,2118.1,0.04721212]
[1773363586131,2.40856145,2119.1,2118.2,5.41337195]
[1773363586298,2.40856145,2119.1,2118.1,1.38]
[1773363586500,3.58836324,2119.0,2118.2,1.18024737]
[1773363586815,3.58836324,2119.0,2118.3,0.04720766]
[1773363588204,1.17980179,2119.0,2118.2,1.18024737]
[1773363588417,4.71920717,2119.1,2118.4,1.18013595]
[1773363588729,7.73467194,2119.4,2118.4,1.18013595]
[1773363588730,2.40856145,2119.4,2118.4,1.18013595]
[1773363589132,2.40856145,2119.4,2118.5,0.0472032]
[1773363589437,2.40856145,2119.4,2118.4,1.18013595]
[1773363590143,2.40856145,2119.4,2118.3,1.18014866]
[1773363590324,2.40856145,2119.2,2118.2,7.1181662]
[1773363590522,1.17974611,2119.1,2118.4,1.18013595]
[1773363590841,1.17974611,2119.1,2118.5,0.0472032]
[1773363592048,2.89429679,2119.4,2118.5,2.41516693]
[1773363592443,3.90012039,2119.4,2118.5,2.41616693]
[1773363592748,0.002,2118.9,2118.6,3.54798827]
[1773363592950,3.90012039,2119.4,2118.7,0.04719875]
[1773363593342,0.002,2119.1,2118.7,0.04719875]
[1773363594554,1.17913404,2120.2,2119.4,1.17957912]
[1773363594740,2.4808236,2120.1,2119.4,1.17957912]
[1773363595191,2.4808236,2120.1,2119.3,3.54755835]
[1773363595469,1.4136402,2120.2,2119.3,3.54755835]
[1773363595673,3.65988552,2120.4,2119.4,2.36796373]
[1773363596171,1.41328658,2120.4,2119.4,2.36796373]
[1773363596343,2.4808236,2120.3,2119.4,2.36796373]
[1773363596545,1.17913404,2120.2,2119.4,3.54754047]
[1773363596768,3.65995764,2120.2,2119.4,1.17957674]
[1773363597147,2.4808236,2120.1,2119.3,2.36796373]
[1773363599082,2.4808236,2119.9,2119.1,1.17974611]
[1773363599885,2.4808236,2119.9,2119.0,3.74996373]
[1773363600402,2.4808236,2119.9,2118.9,0.04719429]
[1773363600689,1.17922733,2120.1,2119.2,2.36796373]
[1773363600857,3.65990203,2120.3,2119.2,2.36796373]
[1773363601057,3.65995156,2120.3,2119.3,6.56205754]
[1773363601257,1.17902041,2120.5,2119.6,2.36796373]
[1773363601458,1.96591812,2120.8,2119.8,2.36796373]
[1773363601706,1.96591812,2120.8,2119.3,1.17963478]
[1773363601707,1.96588945,2120.8,2120.0,3.01445903]
[1773363601989,1.96589715,2120.8,2120.1,2.36796373]
[1773363602174,1.96589715,2120.8,2120.0,3.01445903]
[1773363602175,0.002,2121.0,2120.3,5.38242276]
[1773363602377,0.002,2121.0,2120.4,2.36796373]
[1773363602588,0.002,2121.0,2120.1,2.74265764]
[1773363602589,1.18069971,2121.0,2120.1,2.74265764]
[1773363602959,1.18069971,2121.0,2120.2,1.17913404]
[1773363603195,1.18067129,2121.1,2120.2,3.54709777]
[1773363603396,2.4808236,2121.0,2120.1,3.92181827]
[1773363603566,2.4808236,2121.0,2119.5,6.02891806]
[1773363603567,2.4808236,2120.7,2119.6,2.36796373]
[1773363603894,3.01445903,2120.8,2119.2,3.92231324]
[1773363603895,2.4808236,2120.4,2119.2,3.92231324]
[1773363604063,2.4808236,2120.3,2119.2,5.11062137]
[1773363604262,1.477,2120.2,2119.2,6.29030981]
[1773363604480,2.4808236,2120.3,2119.3,0.04718539]
[1773363604676,2.4808236,2120.1,2119.0,1.17976495]
[1773363605080,3.65990203,2120.4,2119.3,2.36796373]
[1773363605367,3.65990203,2120.4,2119.4,2.41514689]
[1773363605368,1.17907843,2120.3,2119.4,2.41514689]
[1773363605685,1.17891162,2120.6,2119.7,5.38242276]
[1773363605883,3.65972007,2120.7,2119.7,5.38242276]
[1773363606093,3.65972007,2120.7,2119.3,0.04718539]
[1773363606094,3.9578236,2121.0,2119.9,3.01445903]
[1773363606403,3.65953285,2121.0,2120.0,2.36796373]
[1773363606981,3.65951738,2121.0,2120.2,1.17913404]
[1773363607187,4.71675719,2121.1,2120.3,5.38242276]
[1773363607188,0.002,2120.8,2120.3,5.38242276]
[1773363607405,0.002,2121.1,2120.6,2.36796373]
[1773363607608,0.002,2121.0,2120.6,2.36796373]
[1773363608110,6.21605609,2122.1,2120.9,5.38242276]
[1773363608314,6.44776053,2122.1,2121.1,3.01445903]
[1773363608522,6.44776053,2122.1,2120.9,5.38242276]
[1773363608690,6.44776053,2122.1,2120.9,2.36796373]
[1773363609008,6.44776053,2122.1,2120.9,5.38242276]
[1773363609209,1.17812211,2122.1,2121.2,2.36796373]
[1773363609811,5.49528263,2122.0,2120.8,2.36796373]
[1773363610018,1.17812211,2122.1,2121.2,3.01445903]
[1773363610244,0.31680586,2122.5,2121.5,3.01445903]
[1773363610385,1.17791179,2122.4,2121.6,2.36796373]
[1773363610590,0.31680586,2122.5,2121.5,3.01445903]
[1773363610591,1.4946646,2122.5,2121.5,3.01445903]
[1773363610898,3.9754882,2122.5,2121.4,3.01445903]
[1773363611104,3.9754882,2122.5,2121.3,3.546465]
[1773363611309,3.9754882,2122.5,2121.3,2.36796373]
[1773363611310,2.4808236,2122.4,2121.3,2.36796373]
[1773363611616,2.4808236,2122.3,2120.9,2.36796373]
[1773363611787,2.4808236,2121.8,2120.6,3.54687535]
[1773363612315,3.9568236,2121.8,2120.6,3.54687535]
[1773363612611,1.476,2122.4,2121.4,2.36796373]
[1773363612813,3.9754882,2122.5,2121.4,2.36796373]
[1773363612982,2.4808236,2122.4,2121.3,3.01445903]
[1773363613182,2.4808236,2122.4,2121.4,1.17846705]
[1773363613183,1.17796729,2122.3,2121.4,1.17846705]
[1773363613487,7.19269279,2122.4,2121.6,3.01445903]
[1773363613488,1.17792499,2122.4,2121.6,3.01445903]
[1773363613695,1.4947056,2122.5,2121.6,5.38242276]
[1773363614012,3.9755292,2122.5,2121.2,3.54652665]
[1773363614345,1.4947056,2122.5,2121.6,3.01445903]
[1773363614541,0.31680586,2122.5,2121.8,5.38242276]
[1773363614732,1.17752343,2123.1,2122.2,2.36796373]
[1773363615041,1.17752343,2123.1,2121.6,1.382]
[1773363615042,2.4808236,2123.0,2121.8,3.01445903]
[1773363615231,1.17763436,2122.9,2122.1,1.17807831]
[1773363615614,2.4808236,2123.0,2121.6,2.36796373]
[1773363615817,2.4808236,2123.0,2121.9,3.01445903]
[1773363616018,2.4808236,2123.0,2121.7,2.36796373]
[1773363616019,2.4808236,2123.0,2121.7,5.38242276]
[1773363616217,3.01445903,2122.9,2121.7,5.38242276]
[1773363616419,2.4808236,2122.8,2121.4,3.01445903]
[1773363616638,2.4808236,2122.8,2121.7,3.01445903]
[1773363616810,2.4808236,2122.8,2121.9,3.01445903]
[1773363617016,2.4808236,2123.1,2121.7,2.36796373]
[1773363617241,1.17757889,2123.0,2121.8,1.17824488]
[1773363617540,3.65840249,2123.0,2121.8,1.17824488]
[1773363617784,2.4808236,2122.7,2121.4,1.17846705]
[1773363618053,1.17757889,2123.0,2121.7,3.01445903]
[1773363618265,1.475,2122.9,2121.7,5.38242276]
[1773363618448,1.17757889,2123.0,2121.9,3.01445903]
[1773363618619,2.4808236,2122.9,2121.8,2.36796373]
[1773363618818,2.4808236,2122.7,2121.4,3.54643078]
[1773363619058,3.65840249,2123.0,2121.7,3.01445903]
[1773363619242,2.4808236,2122.9,2121.7,3.01445903]
[1773363619439,3.65851344,2122.8,2121.7,1.17828138]
[1773363619762,2.4808236,2122.7,2121.6,3.54631707]
[1773363620129,1.17768984,2122.8,2121.8,2.36796373]
[1773363620436,2.4808236,2122.7,2121.6,1.22548757]
[1773363620854,2.4808236,2122.7,2121.6,1.22546279]
[1773363621163,1.17768984,2122.8,2121.1,2.60862621]
[1773363621164,2.42918608,2122.4,2121.1,2.60862621]
[1773363621364,1.1780228,2122.2,2121.2,3.83431867]
[1773363621567,7.14031422,2122.7,2121.6,2.60862621]
[1773363621774,7.14031422,2122.7,2121.7,0.04713201]
[1773363621970,5.44364511,2122.4,2121.2,1.17854934]
[1773363622369,5.44364511,2122.4,2120.9,4.71475856]
[1773363622370,2.42918608,2122.1,2120.9,4.71475856]
[1773363622671,2.42918608,2122.1,2121.0,3.0616066]
[1773363622870,1.474,2122.0,2121.0,3.0616066]
[1773363623074,3.90318608,2122.0,2120.9,1.17874487]
[1773363623276,3.90318608,2122.0,2121.0,0.04714757]
[1773363623573,2.65217355,2122.0,2121.0,6.84888381]
[1773363623785,1.17812017,2122.1,2121.2,5.62308524]
[1773363624085,4.71211369,2122.2,2121.2,5.62308524]
[1773363624086,4.71194682,2122.3,2121.3,2.65576711]
[1773363624386,4.71194682,2122.3,2121.4,3.01445903]
[1773363624688,3.60711782,2122.4,2121.5,0.04713646]
[1773363624844,1.17793174,2122.4,2121.5,2.65576267]
[1773363625044,1.17793174,2122.4,2121.5,2.60862621]
[1773363625306,1.17793174,2122.4,2121.4,3.01445903]
[1773363625444,0.002,2122.5,2121.7,3.78690871]
[1773363625645,5.44364511,2122.4,2121.0,5.62308524]
[1773363625853,2.42918608,2122.2,2121.1,1.17863372]
[1773363626254,0.002,2122.5,2121.3,5.62308524]
[1773363626442,2.43118608,2122.5,2121.4,0.04713868]
[1773363627080,3.90318608,2122.4,2121.3,2.60862621]
[1773363627274,3.90318608,2122.4,2121.0,3.78730589]
[1773363627275,2.42918608,2122.0,2121.0,3.78730589]
[1773363627451,1.17818935,2121.9,2121.1,1.22572587]
[1773363627648,1.17818935,2121.9,2121.1,1.22577841]
[1773363627854,1.17818935,2121.9,2121.1,1.17863307]
[1773363628273,2.42918608,2121.8,2121.0,1.22582388]
[1773363628458,2.42918608,2121.8,2121.0,1.17867631]
[1773363628775,2.42918608,2121.8,2121.0,1.22582388]
[1773363629615,1.17830041,2121.7,2121.0,1.22582388]
[1773363631828,1.17806519,2122.2,2121.2,5.62308524]
[1773363631985,1.17806519,2122.2,2121.3,2.65576711]
[1773363632717,3.60725127,2122.2,2121.3,0.0471409]
[1773363632905,3.90318608,2122.1,2121.0,1.17867631]
[1773363633713,3.60730361,2122.1,2121.1,2.65577155]
[1773363633907,2.65211753,2122.1,2121.1,2.65577155]
[1773363634107,1.17811753,2122.1,2121.2,5.62308524]
[1773363634430,3.01645903,2122.5,2121.0,1.17867631]
[1773363634431,0.002,2122.5,2121.4,3.01445903]
[1773363634588,0.002,2122.5,2121.7,2.60862621]
[1773363635184,0.002,2122.5,2121.9,2.60862621]
[1773363635922,0.002,2122.5,2122.0,3.78676004]
[1773363636131,1.1774603,2123.3,2122.3,2.60862621]
[1773363636299,2.42918608,2123.2,2122.0,4.19259286]
[1773363636633,5.44364511,2122.9,2121.9,1.17814586]
[1773363637224,2.42918608,2122.9,2121.9,3.78677207]
[1773363637421,1.56401114,2123.4,2122.2,3.01445903]
[1773363637422,2.42918608,2123.2,2122.2,3.01445903]
[1773363637629,2.42918608,2123.2,2122.2,5.62308524]
[1773363637801,2.42918608,2123.4,2122.3,2.60862621]
[1773363638007,5.44364511,2122.8,2121.7,1.13098105]
[1773363638332,2.42918608,2122.7,2121.6,3.78697409]
[1773363638714,2.42918608,2122.7,2121.6,3.78797409]
[1773363638929,2.43118608,2122.7,2121.6,3.78797409]
[1773363639117,3.90518608,2122.7,2121.6,3.83510832]
[1773363639533,3.90518608,2122.7,2121.6,0.001]
[1773363639534,2.42918608,2122.1,2121.6,0.001]
[1773363639905,1.17791179,2122.4,2121.6,0.001]
[1773363640107,3.60709787,2122.4,2121.6,0.001]
[1773363640302,1.17791179,2122.4,2121.6,0.001]
[1773363640535,1.17789107,2122.5,2121.6,0.001]
[1773363641515,5.44364511,2122.3,2121.6,0.001]
[1773363641840,5.43811739,2122.3,2121.6,0.001]
[1773363642140,1.1780228,2122.2,2121.6,0.001]
[1773363642334,3.60720888,2122.2,2121.6,0.001]
[1773363642740,5.08120888,2122.2,2121.6,0.001]
[1773363643242,3.60720888,2122.2,2121.6,0.001]
[1773363643736,5.51216291,2122.1,2121.4,0.001]
[1773363643924,1.17813383,2122.0,2121.4,0.001]
[1773363647425,1.17813383,2122.0,2121.4,2.58421486]
[1773363648219,1.17813383,2122.0,2121.4,0.001]
[1773363648414,4.48393131,2122.5,2121.4,0.001]
[1773363648415,1.17780081,2122.6,2121.6,3.00893131]
[1773363648627,1.17780081,2122.6,2121.7,2.58321486]
[1773363649151,1.17780081,2122.6,2121.4,3.76267766]
[1773363649152,3.00893131,2122.4,2121.4,3.76267766]
[1773363649346,3.00893131,2122.4,2121.4,0.001]
[1773363649347,7.4792316,2122.2,2121.4,0.001]
[1773363649552,3.9792316,2122.2,2121.4,0.001]
[1773363649940,6.98816291,2122.2,2121.4,0.001]
[1773363650449,1.17807831,2122.1,2121.4,0.001]
[1773363650950,3.61875546,2122.1,2121.4,0.001]
[1773363652259,1.17796224,2122.4,2121.4,3.00993131]
[1773363652421,0.23473569,2122.6,2121.7,2.48107122]
[1773363652620,1.17780313,2122.6,2121.7,2.48107122]
[1773363652815,0.002,2122.7,2121.9,2.48107122]
[1773363653329,1.41776895,2122.7,2121.9,2.48107122]
[1773363653530,0.002,2122.1,2121.9,2.48107122]
[1773363653749,0.002,2122.4,2121.9,2.48107122]
[1773363654249,0.002,2122.4,2122.1,2.48107122]
[1773363654446,0.002,2122.4,2122.2,1.1780228]
[1773363654748,7.15016352,2123.4,2122.2,1.1780228]
[1773363654749,1.478,2123.5,2122.4,2.48107122]
[1773363655547,7.14945603,2123.7,2122.4,2.48107122]
[1773363655758,4.70877888,2123.7,2122.6,2.48107122]
[1773363655960,4.94019103,2123.7,2122.6,2.48107122]
[1773363656453,3.00893131,2123.6,2122.6,2.48107122]
[1773363656618,1.17730162,2123.5,2122.7,1.17774532]
[1773363657238,1.17728903,2123.6,2122.8,2.48107122]
[1773363657431,1.17728903,2123.6,2122.5,4.711309]
[1773363657432,3.00893131,2123.5,2122.5,4.711309]
[1773363657644,1.17728903,2123.6,2122.6,2.48107122]
[1773363657843,2.65628903,2123.6,2122.6,2.48107122]
[1773363658637,1.17728903,2123.6,2122.7,3.65881654]
[1773363658833,2.65628903,2123.6,2122.7,3.65881654]
[1773363659277,1.17728903,2123.6,2122.7,3.65881654]
[1773363660068,1.17728903,2123.6,2122.7,2.48107122]
[1773363660585,1.17728903,2123.6,2122.3,2.48107122]
[1773363660586,2.44067715,2123.3,2122.3,2.48107122]
[1773363660879,3.91967715,2123.2,2122.0,1.1780926]
[1773363661184,2.44067715,2123.4,2122.2,3.00893131]
[1773363661342,1.48,2123.2,2122.3,2.48107122]
[1773363661544,1.17728903,2123.6,2122.5,2.48107122]
[1773363661774,2.44067715,2123.4,2122.1,5.08788518]
[1773363661976,2.44067715,2123.4,2122.2,0.04712091]
[1773363662282,1.48,2123.3,2122.2,0.04712091]
[1773363662488,3.92067715,2123.3,2122.2,0.04712091]
[1773363662791,3.92067715,2123.3,2122.1,5.08788518]
[1773363662792,3.61820058,2123.1,2122.1,2.48107122]
[1773363663075,3.61820058,2123.1,2122.1,3.65914688]
[1773363663366,3.61820058,2123.1,2122.0,1.17809311]
[1773363663764,2.44067715,2123.0,2122.0,1.17809311]
[1773363664275,2.44067715,2123.0,2122.0,1.22521846]
[1773363664478,1.17752343,2123.1,2122.1,2.48107122]
[1773363664662,1.17735706,2123.5,2122.7,2.48107122]
[1773363665172,2.65713532,2123.8,2122.7,2.48107122]
[1773363665747,1.17702448,2124.0,2122.9,2.48107122]
[1773363665948,3.00893131,2123.8,2122.9,2.48107122]
[1773363666158,1.40946326,2124.0,2122.9,2.48107122]
[1773363666446,1.40946326,2124.0,2122.6,1.17780081]
[1773363666447,5.44960846,2123.9,2122.7,2.48107122]
[1773363667079,1.17713532,2123.8,2122.9,2.48107122]
[1773363667405,1.1771112,2123.9,2122.9,2.48107122]
[1773363668326,1.1771112,2123.9,2122.7,7.71969068]
[1773363668327,3.00893131,2123.6,2122.7,1.17770195]
[1773363668479,1.1771112,2123.9,2122.8,2.52817881]
[1773363668821,1.1771112,2123.9,2122.8,2.48107122]
[1773363668978,1.17700634,2124.1,2123.1,2.48107122]
[1773363669582,6.6266148,2124.1,2123.1,2.48107122]
[1773363670307,1.481,2124.0,2123.1,2.48107122]
[1773363670811,0.002,2123.4,2123.1,2.48107122]
[1773363671312,0.002,2123.4,2122.9,0.04710537]
[1773363671529,0.002,2123.4,2122.8,1.17768984]
[1773363671680,0.002,2123.4,2122.9,2.48107122]
[1773363671886,1.1770799,2123.9,2122.9,2.48107122]
[1773363672105,1.1770799,2123.9,2123.0,2.48107122]
[1773363672312,0.1679439,2124.2,2123.2,2.48107122]
[1773363672622,0.1679439,2124.2,2123.4,2.48107122]
[1773363672990,1.34486166,2124.2,2123.4,2.48107122]
[1773363673388,5.44960846,2124.1,2123.1,3.65856828]